bitfinex-derivatives/quotes_BTCF0:USTF0_20250318
["timestamp","ask_amount","ask_price","bid_price","bid_amount"]
[1742287279851,1.0962158,83329.0,83328.0,0.01301306]
[1742287280055,1.0962158,83329.0,83325.0,0.00017996]
[1742287280056,0.1200201,83326.0,83325.0,0.00017996]
[1742287280255,0.5068201,83326.0,83325.0,0.00017996]
[1742287280454,1.0133201,83326.0,83325.0,0.00017996]
[1742287281766,1.0143201,83326.0,83325.0,0.00017996]
[1742287282357,0.1200475,83307.0,83306.0,0.3608]
[1742287282560,0.5069675,83307.0,83306.0,0.3608]
[1742287282769,1.0141675,83307.0,83306.0,0.3608]
[1742287283765,1.0141675,83307.0,83306.0,0.3618]
[1742287283968,1.0141675,83307.0,83306.0,0.3638]
[1742287286074,1.0171675,83307.0,83306.0,0.3628]
[1742287286667,1.0201675,83307.0,83306.0,0.3608]
[1742287288076,0.73552,83307.0,83306.0,0.3608]
[1742287288370,0.09,83307.0,83306.0,0.5108]
[1742287288573,0.2100475,83307.0,83306.0,0.5108]
[1742287289474,0.3790475,83307.0,83306.0,0.5108]
[1742287289672,0.3820475,83307.0,83306.0,0.5108]
[1742287290284,0.5566475,83307.0,83306.0,0.5108]
[1742287290670,0.5546475,83307.0,83306.0,0.3608]
[1742287290875,0.5566475,83307.0,83306.0,0.3608]
[1742287292777,0.1250475,83307.0,83306.0,0.5108]
[1742287293381,0.1240475,83307.0,83306.0,0.6308489]
[1742287293876,0.004,83307.0,83306.0,0.6308489]
[1742287294069,0.004,83307.0,83306.0,0.6631489]
[1742287294269,0.004,83307.0,83306.0,0.7106489]
[1742287294472,0.1240475,83307.0,83306.0,0.5906]
[1742287294672,0.1220475,83307.0,83306.0,0.59164]
[1742287295179,0.1220475,83307.0,83306.0,0.7116889]
[1742287295371,0.1200475,83307.0,83306.0,0.7116889]
[1742287295890,0.1794,83309.0,83308.0,0.120046]
[1742287296083,0.1794,83309.0,83308.0,0.199846]
[1742287296273,0.1794,83309.0,83308.0,0.349846]
[1742287297672,0.1794,83309.0,83308.0,0.761446]
[1742287298969,0.1804,83309.0,83308.0,0.762486]
[1742287300180,0.1804,83309.0,83308.0,0.532686]
[1742287300483,0.4104446,83309.0,83308.0,0.41264]
[1742287300886,0.5780446,83309.0,83308.0,0.41264]
[1742287303594,0.5780446,83309.0,83308.0,0.00104]
[1742287304380,0.458,83309.0,83308.0,0.00104]
[1742287305075,0.5780446,83309.0,83308.0,0.00104]
[1742287309188,0.458,83309.0,83308.0,0.00104]
[1742287309886,0.5780446,83309.0,83308.0,0.00104]
[1742287312886,0.6948446,83309.0,83308.0,0.00104]
[1742287313283,0.5780446,83309.0,83308.0,0.00104]
[1742287313483,0.6948046,83309.0,83308.0,0.00104]
[1742287314493,0.458,83309.0,83308.0,0.00104]
[1742287315184,0.5780446,83309.0,83308.0,0.00104]
[1742287315391,0.5780446,83309.0,83308.0,0.08364]
[1742287315584,0.348,83309.0,83308.0,0.08364]
[1742287315785,0.5780446,83309.0,83308.0,0.08364]
[1742287315987,0.4680446,83309.0,83308.0,0.08364]
[1742287316193,0.5680446,83309.0,83308.0,0.08364]
[1742287316498,0.348,83309.0,83308.0,0.08364]
[1742287316993,0.4680446,83309.0,83308.0,0.08364]
[1742287318392,0.3004446,83309.0,83308.0,0.08364]
[1742287318899,0.4697446,83309.0,83308.0,0.08364]
[1742287320189,0.1210446,83309.0,83308.0,0.615286]
[1742287320401,0.1210446,83309.0,83308.0,0.765286]
[1742287320601,0.1796,83314.0,83308.0,0.64524]
[1742287320802,0.2996374,83314.0,83313.0,0.3608]
[1742287321109,0.2996374,83314.0,83313.0,0.47768]
[1742287321300,0.4697374,83314.0,83313.0,0.62768]
[1742287321714,0.1200374,83314.0,83313.0,0.7477188]
[1742287321900,0.00017996,83315.0,83314.0,0.1200374]
[1742287322102,0.00017996,83315.0,83314.0,0.2061374]
[1742287322403,0.00017996,83315.0,83314.0,0.3561374]
[1742287323897,0.17497996,83315.0,83314.0,0.3561374]
[1742287324098,0.17497996,83315.0,83314.0,0.7677374]
[1742287324704,0.00217996,83315.0,83314.0,0.7677374]
[1742287325111,0.00417996,83315.0,83314.0,0.7677374]
[1742287325813,0.11668,83336.0,83324.0,0.120023]
[1742287325997,0.1808,83328.0,83324.0,1.044603]
[1742287326203,0.1778,83327.0,83324.0,1.273903]
[1742287326409,0.1778,83327.0,83324.0,1.423903]
[1742287327206,0.00404,83325.0,83324.0,1.423903]
[1742287327912,4e-05,83331.0,83330.0,0.1200144]
[1742287328109,0.00017996,83333.0,83332.0,0.1200115]
[1742287328316,0.00017996,83333.0,83332.0,0.2700115]
[1742287329809,0.00017996,83333.0,83332.0,0.27888286]
[1742287330022,0.00017996,83333.0,83332.0,0.77668286]
[1742287330406,0.00317996,83333.0,83332.0,0.77668286]
[1742287331213,0.00017996,83333.0,83332.0,0.77668286]
[1742287331414,0.00117996,83333.0,83332.0,0.77668286]
[1742287334614,0.00117996,83333.0,83332.0,0.62668286]
[1742287334916,0.36118996,83333.0,83332.0,0.4116]
[1742287335115,0.36118996,83333.0,83332.0,0.5316115]
[1742287335312,0.71438996,83333.0,83332.0,0.5316115]
[1742287336209,0.59437996,83333.0,83332.0,0.5316115]
[1742287336615,0.71438996,83333.0,83332.0,0.4116]
[1742287337120,0.71438996,83333.0,83331.0,0.1200126]
[1742287337412,0.59437996,83333.0,83332.0,0.1200115]
[1742287337812,0.59437996,83333.0,83330.0,0.3608]
[1742287339818,0.71439016,83333.0,83330.0,0.3608]
[1742287340228,0.59437996,83333.0,83330.0,0.3608]
[1742287340414,0.1200129,83331.0,83330.0,0.3608]
[1742287340615,0.3500129,83331.0,83330.0,0.3608]
[1742287340814,0.5872,83331.0,83330.0,0.3608]
[1742287341011,0.5872,83331.0,83330.0,0.4808144]
[1742287341211,0.5872,83331.0,83330.0,0.3608]
[1742287341613,0.5872,83331.0,83330.0,0.4808144]
[1742287341807,0.5872,83331.0,83330.0,0.3608]
[1742287342012,0.5882,83331.0,83330.0,0.3608]
[1742287344923,0.7082129,83331.0,83330.0,0.3608]
[1742287347324,0.4782129,83331.0,83330.0,0.3608]
[1742287347627,0.5882129,83331.0,83330.0,0.4808144]
[1742287347815,0.4782129,83331.0,83330.0,0.4808144]
[1742287348010,0.5882129,83331.0,83330.0,0.3608]
[1742287348820,0.5882129,83331.0,83330.0,0.4808144]
[1742287349021,0.4782129,83331.0,83330.0,0.4808144]
[1742287349228,0.5882129,83331.0,83330.0,0.3608]
[1742287350620,0.60087497,83331.0,83330.0,0.3608]
[1742287350821,0.60087497,83331.0,83330.0,0.4808144]
[1742287351024,0.5882129,83331.0,83330.0,0.4808144]
[1742287351328,0.5882129,83331.0,83330.0,0.3608]
[1742287351624,0.5782129,83331.0,83330.0,0.3608]
[1742287353321,0.6944529,83331.0,83330.0,0.3608]
[1742287357834,0.1200216,83325.0,83324.0,0.0124615]
[1742287358030,0.3700216,83325.0,83320.0,0.1200277]
[1742287358226,0.67108,83324.0,83320.0,0.01222743]
[1742287358435,1.1311151,83324.0,83323.0,0.7216]
[1742287359023,0.95108,83324.0,83323.0,0.7216]
[1742287359232,0.67008,83324.0,83323.0,0.8416244]
[1742287359531,0.77008,83324.0,83323.0,0.8416244]
[1742287359723,0.77008,83324.0,83323.0,1.0159244]
[1742287359925,0.890103,83324.0,83323.0,0.8959]
[1742287360125,0.889103,83324.0,83323.0,0.8959]
[1742287360432,0.899103,83324.0,83323.0,0.8959]
[1742287360928,0.899103,83324.0,83323.0,0.8969]
[1742287361130,0.899103,83324.0,83323.0,0.8989]
[1742287361737,0.899103,83324.0,83323.0,0.8979]
[1742287363235,0.789103,83324.0,83323.0,0.8979]
[1742287363441,0.899103,83324.0,83323.0,0.8979]
[1742287364140,0.604803,83324.0,83323.0,0.8979]
[1742287364332,0.604803,83324.0,83323.0,1.0179244]
[1742287364333,0.1822,83324.0,83323.0,1.0179244]
[1742287364526,0.302223,83324.0,83323.0,1.0179244]
[1742287364740,0.302223,83324.0,83323.0,1.0886244]
[1742287365332,0.1822,83324.0,83323.0,1.0886244]
[1742287366530,0.1822,83324.0,83323.0,0.3670244]
[1742287366735,0.1822,83324.0,83323.0,1.0886244]
[1742287368033,0.1822,83324.0,83323.0,1.2232244]
[1742287368235,0.302223,83324.0,83323.0,1.2232244]
[1742287368745,0.1822,83324.0,83323.0,1.2232244]
[1742287369143,0.3672,83324.0,83323.0,1.1525244]
[1742287369342,0.3672,83324.0,83323.0,1.2232244]
[1742287379463,0.3672,83324.0,83323.0,1.1525244]
[1742287379764,0.597223,83324.0,83323.0,1.1525244]
[1742287379970,0.597223,83324.0,83323.0,0.9782244]
[1742287381168,0.75324,83324.0,83323.0,0.8582]
[1742287381369,0.873263,83324.0,83323.0,0.8582]
[1742287382078,0.873263,83324.0,83323.0,0.4974]
[1742287382960,0.75324,83324.0,83323.0,0.6174244]
[1742287385769,0.873263,83324.0,83323.0,0.3628]
[1742287394671,0.873263,83324.0,83323.0,0.3628]
[1742287396763,0.873263,83324.0,83323.0,0.002]
[1742287396972,0.1200331,83317.0,83316.0,0.00017996]
[1742287397278,0.4660731,83317.0,83316.0,0.00017996]
[1742287397468,1.0328731,83317.0,83316.0,0.00017996]
[1742287398167,1.0328731,83317.0,83316.0,0.00317996]
[1742287398369,0.9168331,83317.0,83316.0,0.00317996]
[1742287398570,1.0328731,83317.0,83316.0,0.00317996]
[1742287398970,1.04198858,83317.0,83316.0,0.00317996]
[1742287399774,1.0338731,83317.0,83316.0,0.00017996]
[1742287402779,0.9178331,83317.0,83316.0,0.00017996]
[1742287404984,0.9178331,83317.0,83316.0,0.36097996]
[1742287405282,0.9178331,83317.0,83316.0,0.00017996]
[1742287405581,0.9178331,83317.0,83316.0,0.36097996]
[1742287406071,0.6878331,83317.0,83316.0,0.36097996]
[1742287406266,0.7878331,83317.0,83316.0,0.36097996]
[1742287408682,0.7878331,83317.0,83316.0,0.36201996]
[1742287413785,0.7878331,83317.0,83316.0,0.36097996]
[1742287414284,0.7878331,83317.0,83316.0,0.36201996]
[1742287416079,0.6878331,83317.0,83316.0,0.36201996]
[1742287416481,0.7978331,83317.0,83316.0,0.36201996]
[1742287418287,0.7978331,83317.0,83316.0,0.36097996]
[1742287418987,0.7978331,83317.0,83316.0,0.36201996]
[1742287429395,0.7978331,83317.0,83316.0,0.48205446]
[1742287429396,0.18986,83317.0,83316.0,0.48205446]
[1742287429597,0.3098931,83317.0,83316.0,0.36201996]
[1742287429788,0.3098931,83317.0,83316.0,0.63151996]
[1742287429988,0.6170931,83317.0,83316.0,0.63151996]
[1742287430587,0.6170931,83317.0,83316.0,0.54181996]
[1742287431583,0.5070931,83317.0,83316.0,0.54181996]
[1742287431988,0.5070931,83317.0,83316.0,0.63361996]
[1742287434896,0.5070931,83317.0,83316.0,0.54181996]
[1742287436994,0.5070931,83317.0,83316.0,0.66185446]
[1742287437793,0.5070931,83317.0,83316.0,0.54181996]
[1742287437995,0.6170931,83317.0,83316.0,0.36201996]
[1742287438600,0.5070931,83317.0,83316.0,0.36201996]
[1742287438795,0.6070931,83317.0,83316.0,0.36201996]
[1742287440492,0.6070931,83317.0,83316.0,0.29444977]
[1742287450107,0.6070931,83317.0,83316.0,0.47834977]
[1742287450307,0.48706,83317.0,83316.0,0.56014977]
[1742287450809,0.38706,83317.0,83316.0,0.56014977]
[1742287451311,0.5070931,83317.0,83316.0,0.56014977]
[1742287460916,0.5070931,83317.0,83316.0,0.59838427]
[1742287461414,0.6070931,83317.0,83316.0,0.59838427]
[1742287463111,0.6070931,83317.0,83316.0,0.47834977]
[1742287463314,0.5070931,83317.0,83316.0,0.47834977]
[1742287463506,0.6170931,83317.0,83316.0,0.47834977]
[1742287463914,0.6170931,83317.0,83316.0,0.59838427]
[1742287464622,0.6170931,83317.0,83316.0,0.3039345]
[1742287464811,0.5070931,83317.0,83316.0,0.6647345]
[1742287465409,0.5970931,83317.0,83316.0,0.5447]
[1742287465814,0.5070931,83317.0,83316.0,0.5447]
[1742287466122,0.6070931,83317.0,83316.0,0.5447]
[1742287468524,0.5070931,83317.0,83316.0,0.5447]
[1742287468726,0.6170931,83317.0,83316.0,0.5447]
[1742287471722,0.6170931,83317.0,83316.0,0.1839]
[1742287471928,0.6170931,83317.0,83316.0,0.5447]
[1742287474230,0.38706,83317.0,83316.0,0.6647345]
[1742287474419,0.18986,83317.0,83316.0,0.7410345]
[1742287477020,0.001,83317.0,83316.0,0.7410345]
[1742287477329,4e-05,83321.0,83320.0,0.1200288]
[1742287477625,0.1200132,83331.0,83330.0,0.18002]
[1742287477929,0.1200132,83331.0,83330.0,1.01762]
[1742287478319,0.3045132,83331.0,83330.0,1.27072]
[1742287479115,0.1845,83331.0,83330.0,1.27072]
[1742287480227,0.1895,83331.0,83330.0,1.27072]
[1742287480926,0.1935,83331.0,83330.0,1.27072]
[1742287481931,0.1935,83331.0,83330.0,1.15472]
[1742287484434,0.1935,83331.0,83330.0,1.27068]
[1742287485235,0.1935,83331.0,83330.0,0.54908]
[1742287485429,0.1935,83331.0,83330.0,1.27068]
[1742287488230,0.1935,83331.0,83330.0,0.54908]
[1742287488632,0.1935,83331.0,83330.0,1.27068]
[1742287494439,0.09163644,83331.0,83330.0,1.27068]
[1742287495940,0.08463644,83331.0,83330.0,1.01758]
[1742287496736,0.08363644,83331.0,83330.0,1.01758]
[1742287497536,0.08463644,83331.0,83330.0,1.01758]
[1742287497938,0.08363644,83331.0,83330.0,1.01758]
[1742287498139,0.08463644,83331.0,83330.0,1.01758]
[1742287499132,0.08363644,83331.0,83330.0,1.01758]
[1742287499338,0.08463644,83331.0,83330.0,1.01758]
[1742287504655,0.08463644,83331.0,83330.0,0.90162]
[1742287505747,0.00017996,83333.0,83330.0,0.90162]
[1742287505947,0.0599905,83354.0,83353.0,0.0599905]
[1742287506144,0.05,83354.0,83353.0,0.4807798]
[1742287506942,0.05,83354.0,83353.0,0.49322878]
[1742287508253,0.24906208,83371.0,83370.0,0.1199568]
[1742287508452,0.12910628,83371.0,83370.0,0.4807568]
[1742287508660,0.1199525,83374.0,83370.0,0.4207783]
[1742287508860,0.3699525,83374.0,83373.0,0.119951]
[1742287509158,0.6604725,83374.0,83373.0,0.119951]
[1742287509343,0.54052,83374.0,83373.0,0.119951]
[1742287510252,0.29452,83374.0,83373.0,0.1319922]
[1742287510443,0.39452,83374.0,83373.0,0.1319922]
[1742287511650,0.39752,83374.0,83373.0,0.1319922]
[1742287511847,0.2816,83374.0,83373.0,0.0120412]
[1742287512048,0.39752,83374.0,83371.0,0.119955]
[1742287512251,0.1876,83373.0,83371.0,0.119955]
[1742287512547,0.1876,83373.0,83370.0,0.3608]
[1742287512759,0.1756,83372.0,83370.0,0.4807565]
[1742287512949,0.4556,83372.0,83370.0,0.4807565]
[1742287513254,0.1876,83371.0,83370.0,0.4807565]
[1742287513454,0.4676,83371.0,83370.0,0.4807565]
[1742287513651,0.7531553,83371.0,83370.0,0.37302349]
[1742287513857,0.1199625,83366.0,83365.0,0.00017996]
[1742287514041,0.4858825,83366.0,83365.0,0.00017996]
[1742287514355,0.6629825,83366.0,83365.0,0.00017996]
[1742287515151,0.6629825,83366.0,83365.0,0.01261038]
[1742287515369,0.54302,83366.0,83355.0,0.3608]
[1742287515559,0.1199884,83348.0,83343.0,0.23999]
[1742287515747,0.3699884,83348.0,83341.0,0.1812]
[1742287516052,0.0599969,83345.0,83338.0,0.3608]
[1742287516243,0.1200014,83339.0,83338.0,0.3608]
[1742287516448,0.2358795,83341.0,83338.0,0.3608]
[1742287516650,0.3348795,83341.0,83338.0,0.37290619]
[1742287516957,0.1200014,83339.0,83338.0,0.37290619]
[1742287517658,0.3077014,83339.0,83338.0,0.37490619]
[1742287518156,0.3977014,83339.0,83338.0,0.37490619]
[1742287518547,0.4809014,83339.0,83338.0,0.37990619]
[1742287518747,0.5809014,83339.0,83338.0,0.37990619]
[1742287519151,0.5809014,83339.0,83338.0,0.37690619]
[1742287519751,0.5809014,83339.0,83338.0,0.3648]
[1742287519951,0.58983377,83339.0,83338.0,0.3648]
[1742287520744,0.58983377,83339.0,83338.0,0.3628]
[1742287520948,0.58983377,83339.0,83338.0,0.3638]
[1742287522150,0.58983377,83339.0,83338.0,0.3628]
[1742287522750,0.59283377,83339.0,83338.0,0.3608]
[1742287522950,0.59683377,83339.0,83338.0,0.3608]
[1742287531759,0.58382,83339.0,83338.0,0.3608]
[1742287532069,0.7038214,83339.0,83338.0,0.3608]
[1742287535667,0.71283854,83339.0,83338.0,0.3608]
[1742287538469,0.1200129,83331.0,83330.0,0.36097996]
[1742287538666,0.4859329,83331.0,83330.0,0.36097996]
[1742287538857,0.8957329,83331.0,83330.0,0.36097996]
[1742287539665,0.8967329,83331.0,83330.0,0.36097996]
[1742287540067,0.8977329,83331.0,83330.0,0.36097996]
[1742287540862,0.7618329,83331.0,83330.0,0.36097996]
[1742287541374,0.7618329,83331.0,83330.0,0.3735453]
[1742287545674,0.5118329,83331.0,83330.0,0.3735453]
[1742287545867,0.5218329,83331.0,83330.0,0.3735453]
[1742287553276,0.5218329,83331.0,83330.0,0.0127453]
[1742287554876,0.5218329,83331.0,83330.0,0.2773453]
[1742287560178,0.5218329,83331.0,83330.0,0.1427453]
[1742287560972,0.3827329,83331.0,83330.0,0.1427453]
[1742287561274,0.012,83331.0,83330.0,0.2627597]
[1742287561465,0.012,83331.0,83330.0,0.3925597]
[1742287562478,0.011,83331.0,83330.0,0.3925597]
[1742287562675,0.012,83331.0,83330.0,0.3925597]
[1742287562882,0.1320129,83331.0,83330.0,0.2725453]
[1742287563068,0.2587129,83331.0,83330.0,0.3925597]
[1742287563273,0.2597129,83331.0,83330.0,0.3925597]
[1742287563474,0.1397,83331.0,83330.0,0.3925597]
[1742287563679,0.1387,83331.0,83330.0,0.3925597]
[1742287564075,0.1377,83331.0,83330.0,0.3925597]
[1742287564283,0.2577129,83331.0,83330.0,0.3925597]
[1742287564484,0.01,83331.0,83330.0,0.3925597]
[1742287564687,4e-05,83332.0,83331.0,0.1200129]
[1742287564875,4e-05,83332.0,83331.0,0.5026329]
[1742287565075,0.1277,83342.0,83335.0,0.1200068]
[1742287565285,0.2476971,83342.0,83341.0,0.3608]
[1742287565487,0.3476971,83342.0,83341.0,0.3608]
[1742287565686,0.2476971,83342.0,83341.0,0.3608]
[1742287565982,0.3576971,83342.0,83341.0,0.3608]
[1742287566281,0.3596971,83342.0,83341.0,0.3608]
[1742287566583,0.2496971,83342.0,83341.0,0.4807985]
[1742287566777,0.1297,83342.0,83341.0,0.7454985]
[1742287566970,0.1317,83342.0,83341.0,0.7454985]
[1742287567578,0.1357,83342.0,83341.0,0.7454985]
[1742287568372,0.008,83342.0,83341.0,0.7454985]
[1742287568587,0.008,83342.0,83341.0,0.8954985]
[1742287569390,0.00013996,83347.0,83346.0,0.1199913]
[1742287569586,0.00013996,83347.0,83346.0,0.4807913]
[1742287569789,0.00013996,83347.0,83346.0,0.8788913]
[1742287570883,0.00413996,83347.0,83346.0,0.8788913]
[1742287572291,0.00413996,83347.0,83346.0,0.9947713]
[1742287572475,0.00413996,83347.0,83346.0,0.9967713]
[1742287573082,0.00013996,83347.0,83346.0,0.9967713]
[1742287573291,0.00013996,83347.0,83346.0,0.9997713]
[1742287573485,0.00013996,83347.0,83346.0,1.1497713]
[1742287573880,0.00013996,83347.0,83346.0,0.9997713]
[1742287575791,0.00013996,83347.0,83346.0,1.3605713]
[1742287580685,0.1308,83356.0,83355.0,0.1199784]
[1742287580886,0.1308,83356.0,83355.0,0.4807784]
[1742287581091,0.1308,83356.0,83355.0,0.7439784]
[1742287582195,4e-05,83360.0,83359.0,0.1199726]
[1742287582502,4e-05,83360.0,83359.0,0.7488726]
[1742287582796,4e-05,83360.0,83359.0,0.8866726]
[1742287583299,0.00021996,83364.0,83363.0,0.1199668]
[1742287583689,0.00021996,83364.0,83363.0,0.2577668]
[1742287584897,0.00121996,83364.0,83363.0,0.2577668]
[1742287585494,0.00321996,83364.0,83363.0,0.2698059]
[1742287587697,0.00321996,83364.0,83363.0,0.1320059]
[1742287590593,0.11321996,83364.0,83363.0,0.1320059]
[1742287591190,0.11321996,83364.0,83363.0,0.0120391]
[1742287591389,0.23318536,83364.0,83360.0,0.1199704]
[1742287591594,0.1199683,83362.0,83361.0,0.1199693]
[1742287591793,0.11,83362.0,83361.0,0.1199693]
[1742287592002,0.369,83362.0,83361.0,0.1199693]
[1742287593206,0.259,83362.0,83361.0,0.1199693]
[1742287593505,0.369,83362.0,83361.0,0.1199693]
[1742287593908,0.37,83362.0,83361.0,0.1199693]
[1742287594304,0.4899697,83362.0,83360.0,0.0119785]
[1742287594503,0.4899697,83362.0,83347.0,0.00017996]
[1742287594504,0.059987,83359.0,83347.0,0.00017996]
[1742287594705,0.1199806,83354.0,83348.0,0.1199872]
[1742287594894,0.3946,83358.0,83352.0,0.1199827]
[1742287594895,0.37914,83353.0,83352.0,0.1199827]
[1742287595100,0.48914,83353.0,83352.0,0.1199827]
[1742287595301,0.48914,83353.0,83352.0,0.13239331]
[1742287595502,0.3733,83353.0,83352.0,0.13239331]
[1742287595898,0.3733,83353.0,83352.0,0.01241061]
[1742287596214,0.3733,83353.0,83351.0,0.1199828]
[1742287596408,0.3733,83353.0,83352.0,0.002]
[1742287596894,0.4832812,83353.0,83352.0,0.01410785]
[1742287597098,0.4832812,83353.0,83352.0,0.002]
[1742287597701,0.4832812,83353.0,83352.0,0.004]
[1742287597914,0.4832812,83353.0,83352.0,0.002]
[1742287598200,0.1200122,83332.0,83330.0,0.3608]
[1742287598396,0.3791,83331.0,83330.0,0.49316397]
[1742287598600,0.3791,83331.0,83330.0,0.13236397]
[1742287598601,0.4891,83331.0,83330.0,0.13236397]
[1742287598806,0.6081129,83331.0,83330.0,0.01234957]
[1742287599017,0.6081129,83331.0,83321.0,0.1200265]
[1742287599018,0.0600079,83329.0,83321.0,0.1200265]
[1742287599211,0.06001,83327.0,83323.0,0.37320894]
[1742287599510,0.120023,83324.0,83323.0,0.37320894]
[1742287599718,0.204023,83324.0,83323.0,0.37320894]
[1742287600015,0.571863,83324.0,83323.0,0.37320894]
[1742287600711,0.481863,83324.0,83323.0,0.49323334]
[1742287600912,0.01125406,83343.0,83323.0,0.49323334]
[1742287601116,0.1199812,83353.0,83352.0,97.35182009]
[1742287601311,0.92191886,83353.0,83352.0,97.28426874]
[1742287601508,1.07191886,83353.0,83352.0,97.21671739]
[1742287602602,0.95603886,83353.0,83352.0,97.21671739]
[1742287602807,1.07691886,83353.0,83352.0,97.21671739]
[1742287604017,1.08191886,83353.0,83352.0,97.21671739]
[1742287604314,1.48681886,83353.0,83352.0,97.21671739]
[1742287616823,1.37093886,83353.0,83352.0,97.21671739]
[1742287617024,1.48681886,83353.0,83352.0,97.21671739]
[1742287617613,1.48681886,83353.0,83352.0,97.1491649]
[1742287621516,1.50306567,83353.0,83352.0,97.1491649]
[1742287622122,1.50306567,83353.0,83352.0,97.08161352]
[1742287623016,1.38718567,83353.0,83352.0,97.08161352]
[1742287623221,0.81603886,83353.0,83352.0,97.08161352]
[1742287623418,0.64671886,83353.0,83352.0,97.08161352]
[1742287623818,0.51821886,83353.0,83352.0,97.08161352]
[1742287624022,0.64671886,83353.0,83352.0,97.08161352]
[1742287624933,0.77801886,83353.0,83352.0,97.08161352]
[1742287626225,0.64671886,83353.0,83352.0,97.08161352]
[1742287627225,0.77801886,83353.0,83352.0,97.08161352]
[1742287629626,0.77801886,83353.0,83352.0,97.01406488]
[1742287631036,0.64671886,83353.0,83352.0,97.01406488]
[1742287632237,0.64671886,83353.0,83352.0,96.94651625]
[1742287632623,0.77671886,83353.0,83352.0,96.94651625]
[1742287635442,0.77671886,83353.0,83352.0,96.94651625]
[1742287639838,0.77671886,83353.0,83352.0,96.87896042]
[1742287640037,0.64671886,83353.0,83352.0,96.87896042]
[1742287640537,0.5058612,83353.0,83352.0,96.71383558]
[1742287640944,0.3899812,83353.0,83352.0,96.72601306]
[1742287641144,0.12890274,83353.0,83352.0,96.72601306]
[1742287641443,0.15226,83353.0,83352.0,97.08681306]
[1742287641840,4e-05,83354.0,83352.0,97.08681306]
[1742287642040,0.11588,83357.0,83353.0,0.1266]
[1742287642344,4e-05,83355.0,83353.0,0.1266]
[1742287642642,0.05004,83355.0,83353.0,0.1266]
[1742287643034,0.05,83355.0,83353.0,0.1266]
[1742287643233,0.005,83354.0,83353.0,0.1266]
[1742287643835,4e-05,83356.0,83353.0,0.1266]
[1742287644038,0.006,83354.0,83353.0,0.1266]
[1742287644641,0.011,83354.0,83353.0,0.2412]
[1742287645842,0.011,83354.0,83353.0,0.5111812]
[1742287646132,0.006,83354.0,83353.0,0.5111812]
[1742287646946,0.011,83354.0,83353.0,0.5111812]
[1742287647741,0.0599779,83371.0,83370.0,0.1199518]
[1742287647947,0.0599779,83371.0,83370.0,0.3608]
[1742287647948,0.1799392,83371.0,83370.0,0.3608]
[1742287648453,0.4599392,83371.0,83370.0,0.4672]
[1742287648746,0.6868792,83371.0,83370.0,0.5798]
[1742287649140,0.5763792,83371.0,83370.0,0.5798]
[1742287649341,0.4564179,83371.0,83370.0,0.59179141]
[1742287649542,0.11644,83371.0,83370.0,0.59179141]
[1742287649742,0.11644,83371.0,83370.0,0.71174821]
[1742287649942,0.2363953,83371.0,83370.0,0.71174821]
[1742287650149,0.1219553,83371.0,83370.0,0.71174821]
[1742287650651,0.1229553,83371.0,83370.0,0.59179141]
[1742287651239,0.1229553,83371.0,83370.0,0.71174821]
[1742287651442,0.1219553,83371.0,83370.0,0.71174821]
[1742287651843,0.002,83371.0,83370.0,0.71174821]
[1742287652245,0.002,83371.0,83370.0,0.59179141]
[1742287652543,0.1219553,83371.0,83370.0,0.59179141]
[1742287652739,0.002,83371.0,83370.0,0.59179141]
[1742287652940,0.3453553,83371.0,83370.0,0.59179141]
[1742287653150,0.2254,83371.0,83370.0,0.59179141]
[1742287653746,0.3453553,83371.0,83370.0,0.59179141]
[1742287653948,0.2254,83371.0,83370.0,0.59179141]
[1742287654257,0.2254,83371.0,83370.0,0.71174821]
[1742287654460,0.002,83371.0,83370.0,0.71174821]
[1742287656048,0.002,83371.0,83370.0,0.59179141]
[1742287656246,0.1219553,83371.0,83370.0,0.59179141]
[1742287656651,0.3462553,83371.0,83370.0,0.59179141]
[1742287656951,0.3562553,83371.0,83370.0,0.59179141]
[1742287659653,0.012,83371.0,83370.0,0.59179141]
[1742287659857,0.012,83371.0,83370.0,0.71174821]
[1742287660059,0.012,83371.0,83370.0,0.59179141]
[1742287660563,0.012,83371.0,83370.0,0.71174821]
[1742287661364,0.002,83371.0,83370.0,0.71174821]
[1742287662353,0.002,83371.0,83370.0,0.59179141]
[1742287662553,0.208,83371.0,83370.0,0.59179141]
[1742287662763,0.208,83371.0,83370.0,0.71174821]
[1742287663064,0.3279553,83371.0,83370.0,0.71174821]
[1742287663763,0.2234,83371.0,83370.0,0.71174821]
[1742287664663,0.3433553,83371.0,83370.0,0.71174821]
[1742287665764,0.3433553,83371.0,83370.0,0.59179141]
[1742287666155,0.4557553,83371.0,83370.0,0.59179141]
[1742287666662,0.5557553,83371.0,83370.0,0.71174821]
[1742287666964,0.4557553,83371.0,83370.0,0.59179141]
[1742287667166,0.5557553,83371.0,83370.0,0.59179141]
[1742287667663,0.5557553,83371.0,83370.0,0.37279141]
[1742287668963,0.4358,83371.0,83370.0,0.37279141]
[1742287669864,0.4358,83371.0,83370.0,0.60024821]
[1742287670271,0.4358,83371.0,83370.0,0.71604821]
[1742287671166,0.4358,83371.0,83370.0,0.60024821]
[1742287671757,0.55204,83371.0,83370.0,0.60024821]
[1742287673768,0.55204,83371.0,83370.0,0.49274821]
[1742287674162,0.6719953,83371.0,83370.0,0.49274821]
[1742287675061,0.6719953,83371.0,83370.0,0.60044821]
[1742287676869,0.55204,83371.0,83370.0,0.60044821]
[1742287677368,0.55204,83371.0,83370.0,0.70564821]
[1742287679369,0.45204,83371.0,83370.0,0.70564821]
[1742287681372,0.3358,83371.0,83370.0,0.70564821]
[1742287681567,0.4557553,83371.0,83370.0,0.70564821]
[1742287682472,0.5657553,83371.0,83370.0,0.70564821]
[1742287682774,0.5657553,83371.0,83370.0,0.37279141]
[1742287684175,0.5657553,83371.0,83370.0,0.49274821]
[1742287684367,0.5657553,83371.0,83370.0,0.37279141]
[1742287684572,0.56212,83371.0,83370.0,0.37279141]
[1742287684768,0.56212,83371.0,83370.0,0.49274821]
[1742287685775,0.6820753,83371.0,83370.0,0.49274821]
[1742287686177,0.6820753,83371.0,83370.0,0.60004821]
[1742287689775,0.6820753,83371.0,83370.0,0.37279141]
[1742287691577,0.6830753,83371.0,83370.0,0.37279141]
[1742287694392,0.6830753,83371.0,83370.0,0.3608]
[1742287694569,0.1199654,83364.0,83363.0,0.3608]
[1742287694883,0.4862854,83364.0,83363.0,0.29326824]
[1742287695083,0.7015854,83364.0,83363.0,0.29326824]
[1742287695878,0.58162,83364.0,83363.0,0.30839043]